{"text_format":"1","workbook":"xlsx","n_sheets":1,"sheets":["Répartition_postes"],"not_rendered":{"charts":0,"images":0,"macros":0,"external_links":0,"defined_names":0,"comments":0,"pivot_tables":0},"unopened":[],"bounds":{"document_bytes":16777216,"sheet_cells":100000,"rows_first":2000,"rows_last":500,"rows_between":2000,"halvings":0,"cell_chars":16384,"cell_head_chars":4096},"cells_cut":0,"cells_raw":0,"read":"whole","date_system":"1900"}

{"sheet":"Répartition_postes","index":0,"n_rows":34,"n_cols":13,"rows_kept":34,"cut":false,"hidden":false,"merged":[[1,1,1,6]]}
[]
[null,"La concaténation - Assembler les chaînes de caractères"]
[]
[null,"Civilité","Nom","Prénom","Prénom Nom","Répartition","Ventilation",null,"Poste 1","Poste 2","Poste 3","Poste 4","Poste 5"]
[null,"Mr","Hochon","Paul",{"$f":"D5 & \" \" & C5","v":"Paul Hochon"}]
[null,"Mme","Audine","Anne",{"$f":"D6 & \" \" & C6","v":"Anne Audine"}]
[null,"Mme","Rouana","Marie","Marie Rouana"]
[null,"Mme","Hamalibou","Arlette","Arlette Hamalibou"]
[null,"Mr","Céhef","Hassan","Hassan Céhef"]
[null,"Mme","Galls","Charline","Charline Galls"]
[null,"Mr","Houda","Barrack","Barrack Houda"]
[null,"Mme","Tatouille","Laura","Laura Tatouille"]
[null,"Mme","Sille","Lucie","Lucie Sille"]
[null,"Mme","Bernard","Sarah","Sarah Bernard"]
[null,"Mr","Maurice","Philippe","Philippe Maurice"]
[null,"Mr","Bonbeur","Jean","Jean Bonbeur"]
[null,"Mme","Hèresse","Mégane","Mégane Hèresse"]
[null,"Mr","Noix","Stéphane","Stéphane Noix"]
[null,"Mme","Gature","Emilie","Emilie Gature"]
[null,"Mme","De MontéCarlo","Coralie","Coralie De MontéCarlo"]
[null,"Mme","Hénéré","Nadège","Nadège Hénéré"]
[null,"Mr","Sansasse","Lionel","Lionel Sansasse"]
[null,"Mr","Thine","Nikos","Nikos Thine"]
[null,"Mr","Solo","Yohan","Yohan Solo"]
[null,"Mme","Jet","Claire","Claire Jet"]
[null,"Mr","Braltar","Giles","Giles Braltar"]
[null,"Mr","Douche","Raël","Raël Douche"]
[null,"Mme","Sarbaque","Anne","Anne Sarbaque"]
[null,"Mme","Lile","Maurice","Maurice Lile"]
[null,"Mr","Doeuf","John","John Doeuf"]
[null,"Mr","Niomme","Gérard","Gérard Niomme"]
[null,"Mme","Honnête","Camille","Camille Honnête"]
[null,"Mr","Tomette","Jerry","Jerry Tomette"]
[null,"Mr","Dagin","Bruno","Bruno Dagin"]